bitfinex/quotes_SOLUSD_20250622
["timestamp","ask_amount","ask_price","bid_price","bid_amount"]
[1750614374087,12.73783395,130.74,130.73,12.30501521]
[1750614374242,7.04,130.74,130.73,12.30501521]
[1750614375851,7.04,130.74,130.72,12.30501521]
[1750614377732,7.04,130.74,130.71,12.30501521]
[1750614377733,8.56674539,130.73,130.71,12.30501521]
[1750614377939,8.56765586,130.72,130.7,18.64964886]
[1750614378170,5.7124645,130.71,130.7,18.64964886]
[1750614378359,8.56799023,130.72,130.7,18.64964886]
[1750614378537,2.85582274,130.72,130.7,30.95466407]
[1750614378743,2.8556855,130.73,130.72,18.64964886]
[1750614379084,5.71504495,130.73,130.72,12.30501521]
[1750614379938,5.71504495,130.73,130.72,30.95466407]
[1750614380148,8.5735542,130.73,130.72,30.95466407]
[1750614380365,7.04,130.74,130.72,30.95466407]
[1750614380556,7.04,130.74,130.73,18.64964886]
[1750614380876,15.61597421,130.74,130.73,18.64964886]
[1750614381178,1.17757656,130.76,130.73,30.95466407]
[1750614381344,1.17757656,130.76,130.75,30.95466407]
[1750614382182,1.17757656,130.76,130.75,34.81251019]
[1750614384771,1.17757656,130.76,130.75,30.95466407]
[1750614385972,1.17757656,130.76,130.75,34.7677672]
[1750614386176,1.17757656,130.76,130.75,35.4477672]
[1750614387766,1.17757656,130.76,130.75,47.75278241]
[1750614388171,1.17757656,130.76,130.75,73.75278241]
[1750614388555,5.70234019,130.83,130.75,80.72096596]
[1750614388761,18.7373554,130.83,130.79,12.30501521]
[1750614389074,6.43234019,130.83,130.8,12.30501521]
[1750614389252,9.27911161,130.83,130.8,12.30501521]
[1750614389453,9.27911161,130.84,130.81,12.30501521]
[1750614389667,3.57677142,130.84,130.81,12.30501521]
[1750614389882,0.73,130.84,130.81,12.30501521]
[1750614390063,17.09691161,130.85,130.83,12.30501521]
[1750614390064,15.56911161,130.85,130.83,12.30501521]
[1750614390393,7.75,130.85,130.82,12.30501521]
[1750614390781,7.75,130.85,130.83,12.30501521]
[1750614390987,7.02,130.85,130.84,12.30501521]
[1750614391156,14.67881521,130.89,130.84,12.30501521]
[1750614391350,12.30501521,130.88,130.84,12.30501521]
[1750614391554,2.84159184,130.88,130.86,12.30501521]
[1750614391755,9.86159184,130.89,130.87,12.30501521]
[1750614392178,7.02,130.89,130.87,12.30501521]
[1750614392388,7.02,130.89,130.82,18.64964886]
[1750614392578,7.02,130.89,130.87,18.70818127]
[1750614392757,7.02,130.89,130.85,18.64964886]
[1750614393074,7.02,130.89,130.88,18.64964886]
[1750614393870,7.02,130.89,130.87,18.70818127]
[1750614395091,7.02,130.89,130.85,18.64964886]
[1750614395092,7.02,130.89,130.88,18.70818127]
[1750614395389,1.657653,130.93,130.89,18.64964886]
[1750614395567,1.657653,130.93,130.92,37.35783013]
[1750614396276,1.657653,130.93,130.92,38.03783013]
[1750614397904,7.02,130.99,130.95,18.64964886]
[1750614398103,7.02,130.99,130.98,37.35783013]
[1750614398864,7.02,130.99,130.92,0.68]
[1750614399094,7.02,130.99,130.88,56.61232826]
[1750614399095,18.70818127,130.96,130.89,6.8769]
[1750614399359,25.09668127,130.97,130.92,18.70818127]
[1750614399663,7.1185,130.97,130.93,18.70818127]
[1750614400058,7.1185,130.97,130.94,18.70818127]
[1750614400287,0.73,130.98,130.95,18.70818127]
[1750614400968,7.02,130.99,130.95,18.70818127]
[1750614401170,7.02,130.99,130.97,18.70818127]
[1750614401481,18.70818127,130.98,130.94,18.70818127]
[1750614401675,0.73,130.98,130.95,18.70818127]
[1750614402270,7.02,130.99,130.96,18.70818127]
[1750614402467,26.45818127,130.99,130.92,19.32964886]
[1750614402667,26.45818127,130.99,130.95,18.70818127]
[1750614403878,19.43818127,130.98,130.92,19.32964886]
[1750614404175,0.73,130.97,130.93,18.70818127]
[1750614404372,0.73,130.97,130.94,18.70818127]
[1750614405302,18.70818127,130.97,130.93,18.70818127]
[1750614405487,0.73,130.96,130.93,18.70818127]
[1750614405892,19.43818127,130.98,130.94,18.70818127]
[1750614406606,7.02,130.99,130.95,18.70818127]
[1750614406902,7.02,130.99,130.97,18.70818127]
[1750614407277,7.02,130.99,130.96,18.70818127]
[1750614408582,7.02,130.99,130.91,6.2602]
[1750614408795,18.70818127,130.98,130.92,18.64964886]
[1750614409000,19.43818127,130.98,130.94,18.64964886]
[1750614409385,19.43818127,130.98,130.94,37.35783013]
[1750614409795,18.70818127,130.97,130.91,0.68]
[1750614410002,19.43818127,130.97,130.93,18.70818127]
[1750614410192,18.70818127,130.98,130.94,18.70818127]
[1750614410402,19.43818127,130.98,130.94,18.70818127]
[1750614410701,18.70818127,130.98,130.94,18.70818127]
[1750614410880,0.73,130.97,130.92,18.64964886]
[1750614411078,19.43818127,130.97,130.9,18.64964886]
[1750614411280,19.43818127,130.96,130.92,18.70818127]
[1750614411988,0.73,130.96,130.93,18.70818127]
[1750614412804,0.73,130.96,130.9,18.64964886]
[1750614413001,0.73,130.96,130.93,18.70818127]
[1750614413604,19.43818127,130.96,130.92,18.70818127]
[1750614414236,0.73,130.96,130.93,18.70818127]
[1750614414683,0.73,130.96,130.9,18.64964886]
[1750614414998,0.73,130.96,130.93,18.70818127]
[1750614415385,19.43818127,130.96,130.92,18.70818127]
[1750614415800,0.73,130.96,130.92,18.70818127]
[1750614415993,19.43818127,130.96,130.92,18.70818127]
[1750614416594,19.45818127,130.97,130.93,18.70818127]
[1750614417389,0.75,130.97,130.94,18.70818127]
[1750614417709,59.25298127,130.99,130.94,18.70818127]
[1750614418003,19.45818127,130.98,130.94,18.70818127]
[1750614419211,13.56563979,131.04,130.98,18.64964886]
[1750614419422,18.70818127,130.99,130.94,1.6553]
[1750614419709,19.45818127,130.99,130.95,37.35783013]
[1750614420216,19.45818127,130.98,130.94,18.70818127]
[1750614420408,19.45818127,130.98,130.93,18.70818127]
[1750614420723,0.75,130.96,130.92,37.35783013]
[1750614421689,25.12368127,130.97,130.92,37.35783013]
[1750614421882,19.45818127,130.96,130.92,37.35783013]
[1750614422105,19.45818127,130.96,130.92,18.70818127]
[1750614422316,19.45818127,130.96,130.91,0.74]
[1750614422502,19.45818127,130.96,130.92,18.70818127]
[1750614423711,25.87368127,130.97,130.93,18.70818127]
[1750614424208,12.03437873,130.97,130.94,18.70818127]
[1750614424386,6.4155,130.97,130.94,18.70818127]
[1750614424580,19.45818127,130.96,130.9,18.64964886]
[1750614424781,18.70818127,130.96,130.92,18.70818127]
[1750614424987,0.75,130.95,130.92,18.70818127]
[1750614425202,18.70818127,130.96,130.92,18.70818127]
[1750614425405,19.45818127,130.96,130.92,18.70818127]
[1750614425599,0.75,130.96,130.92,18.70818127]
[1750614425801,6.38974078,130.96,130.92,18.70818127]
[1750614426122,19.45818127,130.95,130.88,1.6553]
[1750614426284,13.02216873,130.94,130.9,12.27216873]
[1750614426483,0.75,130.94,130.9,12.27216873]
[1750614426686,0.75,130.94,130.91,12.27216873]
[1750614428193,0.75,130.94,130.9,12.27216873]
[1750614429808,0.75,130.94,130.91,12.27216873]
[1750614430193,12.27216873,130.95,130.91,12.27216873]
[1750614430412,5.66356051,130.94,130.92,12.27216873]
[1750614430712,7.1655,130.97,130.89,18.64964886]
[1750614430713,12.27216873,130.95,130.89,18.64964886]
[1750614430914,0.75,130.93,130.88,30.92181759]
[1750614431088,5.66398281,130.92,130.89,12.27216873]
[1750614431433,7.15013979,130.97,130.92,18.64964886]
[1750614431611,5.66826448,130.96,130.95,30.92181759]
[1750614434806,8.51958267,130.96,130.95,30.92181759]
[1750614435128,7.15013979,131.02,130.97,0.36]
[1750614435420,7.15013979,131.04,131.02,18.64964886]
[1750614435617,7.15013979,131.04,130.98,19.00964886]
[1750614435926,19.42230852,131.05,131.0,12.27216873]
[1750614436099,0.75,131.02,130.98,12.27216873]
[1750614436491,0.75,131.02,130.99,12.27216873]
[1750614436742,33.06,131.06,131.01,12.27216873]
[1750614436743,7.15013979,131.04,131.01,12.27216873]
[1750614436913,7.90013979,131.05,131.02,12.27216873]
[1750614437798,0.75,131.05,131.03,12.27216873]
[1750614438619,0.75,131.05,131.02,12.27216873]
[1750614438821,27.23230852,131.06,131.02,12.27216873]
[1750614439415,27.23230852,131.06,130.98,19.00964886]
[1750614439618,27.23230852,131.06,131.02,12.27216873]
[1750614440114,14.96013979,131.06,131.02,12.27216873]
[1750614440419,14.21013979,131.06,131.03,30.92181759]
[1750614441195,7.06,131.06,131.03,30.92181759]
[1750614442139,7.06,131.06,131.0,18.64964886]
[1750614442311,7.06,131.06,130.97,12.27216873]
[1750614442312,7.15013979,131.04,130.97,12.27216873]
[1750614442518,12.99216873,131.01,130.97,12.27216873]
[1750614442907,12.99216873,131.01,130.98,18.64964886]
[1750614443222,12.27216873,131.02,130.98,18.64964886]
[1750614443423,12.99216873,131.02,130.98,18.64964886]
[1750614443607,12.99216873,131.02,130.98,30.92181759]
[1750614444198,12.99216873,131.02,130.98,18.64964886]
[1750614444521,12.27216873,131.01,130.96,12.27216873]
[1750614444820,0.72,130.99,130.96,12.27216873]
[1750614445319,0.72,130.99,130.94,18.64964886]
[1750614445320,12.99216873,130.99,130.94,12.27216873]
[1750614445527,12.99216873,130.99,130.95,18.64964886]
[1750614445831,12.27216873,130.99,130.95,18.64964886]
[1750614446001,12.27216873,130.99,130.93,1.6013]
[1750614446002,12.27216873,130.98,130.93,12.27216873]
[1750614446197,12.99216873,130.96,130.92,18.64964886]
[1750614446835,12.99216873,130.96,130.91,12.27216873]
[1750614447030,12.27216873,130.97,130.92,12.27216873]
[1750614447220,5.69471813,130.96,130.93,12.27216873]
[1750614447423,5.69471813,130.97,130.93,12.27216873]
[1750614447618,12.27216873,130.98,130.93,12.27216873]
[1750614447932,12.27216873,130.96,130.91,12.27216873]
[1750614448098,17.96721346,130.95,130.92,18.64964886]
[1750614448304,19.41661993,130.95,130.92,18.64964886]
[1750614448533,0.72,130.95,130.92,18.64964886]
[1750614448912,25.11187703,130.95,130.89,1.6013]
[1750614449115,19.41661993,130.95,130.91,18.69661993]
[1750614449899,19.41661993,130.95,130.9,18.64964886]
[1750614450127,19.41661993,130.95,130.91,18.69661993]
[1750614450330,19.41661993,130.95,130.9,18.64964886]
[1750614450532,19.41661993,130.95,130.91,18.69661993]
[1750614450836,0.72,130.95,130.91,18.69661993]
[1750614451334,25.11178651,130.98,130.94,18.69661993]
[1750614451707,148.1,130.99,130.95,18.69661993]
[1750614451908,58.01661993,131.0,130.96,18.69661993]
[1750614452104,39.32,131.0,130.96,18.69661993]
[1750614452415,19.41661993,131.01,130.96,18.69661993]
[1750614452603,18.69661993,130.99,130.91,18.64964886]
[1750614452803,0.72,130.98,130.93,18.64964886]
[1750614453037,18.69661993,130.95,130.89,1.9613]
[1750614453351,19.41661993,130.95,130.9,37.34626879]
[1750614453517,0.72,130.95,130.91,18.69661993]
[1750614453709,18.69661993,130.96,130.92,18.69661993]
[1750614454420,19.41661993,130.96,130.92,18.69661993]
[1750614455006,7.22,130.95,130.87,3.82420409]
[1750614455210,0.72,130.93,130.87,18.64964886]
[1750614455410,18.69661993,130.9,130.86,1.6362]
[1750614455636,0.72,130.93,130.88,18.69661993]
[1750614455813,18.69661993,130.93,130.87,18.64964886]
[1750614456016,18.69661993,130.92,130.88,18.69661993]
[1750614456322,18.69661993,130.91,130.87,37.34626879]
[1750614456750,0.72,130.92,130.87,37.34626879]
[1750614456943,19.41661993,130.92,130.87,37.34626879]
[1750614457435,19.41661993,130.94,130.89,18.69661993]
[1750614457838,18.69661993,130.93,130.89,18.69661993]
[1750614458222,19.41661993,130.94,130.89,18.69661993]
[1750614459742,0.72,130.94,130.9,18.69661993]
[1750614459943,0.72,130.94,130.87,18.64964886]
[1750614460242,19.41661993,130.94,130.9,18.69661993]
[1750614460618,19.41661993,130.94,130.87,18.64964886]
[1750614460619,19.41661993,130.94,130.89,18.69661993]
[1750614461440,18.69661993,130.91,130.86,1.6362]
[1750614461755,18.69661993,130.91,130.87,37.34626879]
[1750614461929,18.69661993,130.92,130.87,37.34626879]
[1750614462240,18.69661993,130.91,130.87,37.34626879]
[1750614462435,0.72,130.92,130.87,18.64964886]
[1750614462643,18.69661993,130.91,130.87,37.34626879]
[1750614462939,19.41661993,130.92,130.87,37.34626879]
[1750614463337,19.41661993,130.91,130.87,37.34626879]
[1750614463731,0.72,130.91,130.87,37.34626879]
[1750614464136,19.41661993,130.91,130.87,18.64964886]
[1750614464740,44.69661993,130.88,130.82,1.6443]
[1750614464961,33.94,130.88,130.79,1.6443]
[1750614465125,148.1,130.87,130.82,18.69661993]
[1750614465450,7.94,130.88,130.79,1.6443]
[1750614465451,7.22,130.88,130.85,18.69661993]
[1750614465626,7.22,130.88,130.87,18.69661993]
[1750614465827,0.72,130.9,130.87,18.69661993]
[1750614466038,0.72,130.9,130.86,37.34626879]
[1750614466232,0.72,130.9,130.87,18.69661993]
[1750614466430,19.41661993,130.92,130.88,18.69661993]
[1750614467041,0.72,130.91,130.87,18.69661993]
[1750614467545,0.72,130.91,130.86,18.64964886]
[1750614467720,18.69661993,130.92,130.86,18.64964886]
[1750614467928,0.72,130.89,130.85,18.69661993]
[1750614468134,18.69661993,130.87,130.82,37.34626879]
[1750614468341,18.69661993,130.87,130.8,6.3187]
[1750614468342,18.69661993,130.85,130.8,18.69661993]
[1750614468530,19.41661993,130.84,130.79,18.69661993]
[1750614468728,18.69661993,130.84,130.79,18.69661993]
[1750614468931,18.69661993,130.84,130.8,18.69661993]
[1750614469436,0.72,130.86,130.79,18.64964886]
[1750614469745,0.72,130.83,130.79,37.34626879]
[1750614469951,18.69661993,130.82,130.76,13.5387]
[1750614470246,19.41661993,130.82,130.78,18.64964886]
[1750614471048,19.41661993,130.82,130.76,18.64964886]
[1750614471251,19.41661993,130.8,130.76,37.34626879]
[1750614472222,19.41661993,130.79,130.74,18.64964886]
[1750614472424,19.41661993,130.79,130.75,18.69661993]
[1750614472626,7.24,130.81,130.74,18.69661993]
[1750614472627,19.41661993,130.78,130.74,18.69661993]
[1750614473556,19.41661993,130.79,130.74,18.69661993]
[1750614474436,19.41661993,130.79,130.75,18.69661993]
[1750614474626,18.69661993,130.8,130.76,18.69661993]
[1750614474832,19.41661993,130.8,130.72,19.00964886]
[1750614475035,18.69661993,130.79,130.75,18.69661993]
[1750614475260,19.41661993,130.79,130.72,19.00964886]
[1750614475440,18.69661993,130.8,130.76,18.69661993]
[1750614475643,26.65661993,130.81,130.77,18.69661993]
[1750614475845,7.96,130.81,130.77,18.69661993]
[1750614476149,26.65661993,130.81,130.77,18.69661993]
[1750614477350,26.65661993,130.81,130.76,18.69661993]
[1750614477546,19.41661993,130.79,130.75,18.69661993]
[1750614477855,19.41661993,130.79,130.74,18.69661993]
[1750614478048,0.72,130.77,130.74,18.64964886]
[1750614478247,0.72,130.77,130.73,18.64964886]
[1750614478851,18.69661993,130.75,130.72,18.64964886]
[1750614479075,46.29031993,130.8,130.69,37.34626879]
[1750614479076,18.69661993,130.73,130.69,37.34626879]
[1750614479239,19.41661993,130.72,130.67,18.69661993]
[1750614479574,18.69661993,130.73,130.69,18.69661993]
[1750614480154,19.41661993,130.72,130.68,18.69661993]
[1750614480872,18.69661993,130.74,130.71,18.64964886]
[1750614481079,8.3,130.75,130.7,18.69661993]
[1750614481275,26.27661993,130.75,130.69,18.64964886]
[1750614481445,18.69661993,130.72,130.64,28.0066]
[1750614481789,18.69661993,130.72,130.67,18.69661993]
[1750614481943,19.41661993,130.72,130.67,18.69661993]
[1750614482139,18.69661993,130.71,130.65,18.64964886]
[1750614482460,18.69661993,130.7,130.66,18.69661993]
[1750614482643,18.69661993,130.71,130.67,18.69661993]
[1750614483156,19.41661993,130.71,130.67,18.69661993]
[1750614483358,19.41661993,130.69,130.65,18.64964886]
[1750614483672,19.41661993,130.68,130.63,18.69661993]
[1750614483962,19.41661993,130.68,130.59,6.1624]
[1750614483963,18.69661993,130.64,130.6,18.69661993]
[1750614484270,19.41661993,130.63,130.59,18.69661993]
[1750614484461,6.4485,130.66,130.61,18.69661993]
[1750614484462,25.14511993,130.66,130.61,18.69661993]
[1750614484766,25.86511993,130.66,130.58,1.6258]
[1750614484946,25.86511993,130.66,130.61,18.69661993]
[1750614485147,18.69661993,130.65,130.61,18.69661993]
[1750614485355,19.41661993,130.65,130.61,18.69661993]
[1750614486065,0.72,130.69,130.62,18.69661993]
[1750614486361,7.1685,130.7,130.67,18.69661993]
[1750614486543,7.1685,130.7,130.66,18.69661993]
[1750614487355,7.1685,130.7,130.68,18.69661993]
[1750614487951,6.4485,130.7,130.67,18.69661993]
[1750614488168,0.72,130.69,130.67,18.69661993]
[1750614488353,0.72,130.69,130.61,18.64964886]
[1750614488549,0.72,130.69,130.66,18.69661993]
[1750614488757,18.69661993,130.69,130.64,18.69661993]
[1750614488956,0.72,130.67,130.64,18.69661993]
[1750614489156,0.72,130.67,130.58,1.6258]
[1750614489363,18.69661993,130.65,130.59,18.64964886]
[1750614489565,19.41661993,130.65,130.58,1.6258]
[1750614489757,19.41661993,130.64,130.6,18.69661993]
[1750614489947,0.72,130.63,130.54,20.28687688]
[1750614490143,18.69661993,130.66,130.62,18.69661993]
[1750614490472,7.6,130.67,130.64,18.69661993]
[1750614490651,8.32,130.67,130.63,18.69661993]
[1750614491371,8.32,130.67,130.62,18.69661993]
[1750614491372,18.69661993,130.66,130.62,18.69661993]
[1750614491559,0.72,130.65,130.62,18.69661993]
[1750614492973,0.72,130.65,130.61,18.69661993]
[1750614493160,0.72,130.65,130.62,18.69661993]
[1750614493472,0.72,130.65,130.61,18.69661993]
[1750614494248,0.72,130.65,130.62,18.69661993]
[1750614494866,0.72,130.65,130.58,18.64964886]
[1750614495074,18.69661993,130.65,130.61,18.69661993]
[1750614495448,0.72,130.64,130.61,18.69661993]
[1750614495648,18.69661993,130.64,130.59,18.69661993]
[1750614495882,0.72,130.63,130.6,18.64964886]
[1750614496055,18.69661993,130.64,130.6,37.34626879]
[1750614496261,32.7,130.66,130.61,18.69661993]
[1750614496262,0.72,130.65,130.61,18.69661993]
[1750614496576,0.72,130.65,130.62,18.69661993]
[1750614497752,0.72,130.65,130.61,18.69661993]
[1750614498964,17.41661993,130.66,130.61,18.69661993]
[1750614499360,52.29661993,130.67,130.63,18.69661993]
[1750614499674,7.6,130.67,130.64,18.64964886]
[1750614499876,14.0485,130.7,130.67,18.64964886]
[1750614500086,14.0485,130.7,130.69,18.69661993]
[1750614500294,14.0485,130.7,130.67,18.69661993]
[1750614500574,14.0485,130.7,130.66,18.69661993]
[1750614501462,19.41661993,130.69,130.65,18.69661993]
[1750614501667,0.72,130.67,130.64,18.69661993]
[1750614502258,26.0,130.69,130.64,18.69661993]
[1750614502559,26.0,130.67,130.65,18.69661993]
[1750614502789,18.69661993,130.69,130.65,18.69661993]
[1750614502987,19.38661993,130.68,130.63,18.69661993]
[1750614503285,19.38661993,130.67,130.63,18.64964886]
[1750614503463,19.38661993,130.67,130.62,18.69661993]
[1750614503667,19.38661993,130.66,130.62,18.69661993]
[1750614504065,18.69661993,130.65,130.61,18.64964886]
[1750614504300,19.38661993,130.65,130.61,18.64964886]
[1750614505285,27.6161,130.67,130.6,18.64964886]
[1750614505286,19.38661993,130.63,130.6,18.64964886]
[1750614505485,0.69,130.63,130.6,18.64964886]
[1750614505676,0.69,130.63,130.59,18.64964886]
[1750614505853,19.38661993,130.63,130.59,37.34626879]
[1750614506260,19.38661993,130.62,130.58,18.69661993]
[1750614506680,18.69661993,130.61,130.57,37.34626879]
[1750614508083,19.38661993,130.62,130.58,18.69661993]
[1750614508591,19.38661993,130.6,130.56,18.64964886]
[1750614508794,18.69661993,130.62,130.57,18.69661993]
[1750614509298,18.69661993,130.62,130.55,18.64964886]
[1750614509494,18.69661993,130.62,130.57,18.69661993]
[1750614509670,24.32816497,130.62,130.57,18.69661993]
[1750614509871,24.32816497,130.62,130.55,18.64964886]
[1750614510078,24.32816497,130.62,130.56,18.69661993]
[1750614510079,19.38661993,130.6,130.56,18.69661993]
[1750614510387,18.69661993,130.59,130.55,37.34626879]
[1750614510565,18.69661993,130.59,130.53,26.0]
[1750614510566,18.69661993,130.58,130.54,18.69661993]
[1750614511272,19.38661993,130.58,130.54,18.69661993]
[1750614511986,26.21661993,130.57,130.48,2.3066]
[1750614512190,26.0,130.53,130.48,2.3066]
[1750614512364,44.69661993,130.53,130.48,18.69661993]
[1750614512693,18.69661993,130.51,130.47,18.69661993]
[1750614512893,19.38661993,130.51,130.46,18.69661993]
[1750614513063,5.65620397,130.5,130.45,18.69661993]
[1750614513269,13.6917,130.51,130.47,18.69661993]
[1750614513789,19.34728821,130.51,130.47,18.69661993]
[1750614514195,13.6917,130.51,130.44,44.64964886]
[1750614514372,13.6917,130.51,130.47,18.69661993]
[1750614514576,18.69661993,130.49,130.44,18.64964886]
[1750614514782,19.38661993,130.49,130.44,37.34626879]
[1750614514962,18.69661993,130.47,130.43,18.69661993]
[1750614515167,18.69661993,130.47,130.42,18.69661993]
[1750614515168,19.38661993,130.47,130.42,18.69661993]
[1750614515366,31.65069602,130.5,130.46,18.69661993]
[1750614515598,45.38661993,130.5,130.44,18.64964886]
[1750614515817,18.69661993,130.49,130.42,18.64964886]
[1750614516015,18.69661993,130.44,130.4,18.69661993]
[1750614516215,18.69661993,130.44,130.38,2.2224]
[1750614516216,18.69661993,130.44,130.39,18.69661993]
[1750614516512,33.52,130.45,130.41,18.69661993]
[1750614516679,7.52,130.45,130.43,18.69661993]
[1750614516882,7.52,130.45,130.44,18.64964886]
[1750614517194,26.21661993,130.45,130.38,27.5424]
[1750614517380,18.69661993,130.42,130.37,18.69661993]
[1750614517700,18.69661993,130.42,130.38,18.69661993]
[1750614518075,19.38661993,130.42,130.38,18.64964886]
[1750614518275,26.69,130.41,130.3,1.547]
[1750614518498,18.69661993,130.38,130.33,18.69661993]
[1750614518706,18.69661993,130.38,130.3,1.547]
[1750614519000,18.69661993,130.38,130.34,18.64964886]
[1750614519575,18.69661993,130.37,130.31,18.64964886]
[1750614519902,18.69661993,130.37,130.34,18.64964886]
[1750614520271,18.69661993,130.36,130.33,18.64964886]
[1750614520788,18.69661993,130.35,130.26,1.547]
[1750614521104,18.69661993,130.33,130.29,37.34626879]
[1750614521317,18.69661993,130.31,130.26,1.547]
[1750614521488,7.54,130.34,130.3,18.69661993]
[1750614521820,7.54,130.34,130.28,20.35427293]
[1750614521976,18.69661993,130.33,130.29,18.69661993]
[1750614522176,18.69661993,130.33,130.3,18.64964886]
[1750614522686,19.38661993,130.33,130.3,18.64964886]
[1750614522898,18.69661993,130.33,130.29,18.64964886]
[1750614523120,18.69661993,130.33,130.29,37.34626879]
[1750614523411,7.54,130.34,130.32,37.34626879]
[1750614523619,7.54,130.34,130.33,37.34626879]
[1750614523982,26.0,130.37,130.34,18.64964886]
[1750614524195,26.23661993,130.39,130.34,37.34626879]
[1750614524380,26.92661993,130.39,130.34,18.64964886]
[1750614524585,7.54,130.39,130.36,37.34626879]
[1750614524987,7.54,130.39,130.37,18.69661993]
[1750614525189,0.69,130.42,130.38,18.69661993]
[1750614525383,19.38661993,130.41,130.34,18.64964886]
[1750614525586,0.69,130.41,130.37,18.69661993]
[1750614525793,19.38661993,130.41,130.37,18.69661993]
[1750614526704,44.69661993,130.42,130.38,37.34626879]
[1750614526905,26.0,130.42,130.38,18.69661993]
[1750614527607,18.69661993,130.4,130.36,18.69661993]
[1750614528084,26.69,130.42,130.36,18.69661993]
[1750614528503,18.69661993,130.41,130.36,18.69661993]
[1750614528704,18.69661993,130.41,130.37,18.69661993]
[1750614528907,19.38661993,130.41,130.37,18.69661993]
[1750614529414,0.69,130.41,130.38,18.69661993]
[1750614529611,44.69661993,130.42,130.38,18.69661993]
[1750614529913,45.38661993,130.42,130.38,18.69661993]
[1750614530114,45.38661993,130.42,130.32,18.69661993]
[1750614530115,26.0,130.36,130.31,18.69661993]
[1750614530321,44.69661993,130.36,130.31,18.69661993]
[1750614530837,44.69661993,130.36,130.32,18.69661993]
[1750614530996,26.23661993,130.37,130.34,18.64964886]
[1750614531934,18.69661993,130.36,130.32,18.69661993]
[1750614532137,26.23661993,130.37,130.33,18.69661993]
[1750614532719,7.54,130.37,130.34,18.64964886]
[1750614532920,7.54,130.37,130.35,18.64964886]
[1750614533236,7.54,130.37,130.35,37.34626879]
[1750614533391,7.54,130.37,130.35,18.64964886]
[1750614533592,7.54,130.37,130.33,18.69661993]
[1750614533789,18.69661993,130.36,130.33,18.64964886]
[1750614534137,18.69661993,130.34,130.31,18.64964886]
[1750614535224,18.69661993,130.34,130.3,18.64964886]
[1750614535519,19.39661993,130.34,130.3,18.64964886]
[1750614535726,18.69661993,130.31,130.28,1.657653]
[1750614535929,18.69661993,130.29,130.28,1.657653]
[1750614537316,52.04211993,130.29,130.28,1.657653]
[1750614537526,29.83789414,130.29,130.28,0.157653]
[1750614537704,26.0,130.27,130.2,18.69661993]
[1750614538017,33.04,130.28,130.24,19.32964886]
[1750614538222,18.69661993,130.27,130.22,18.69661993]
[1750614538403,18.69661993,130.27,130.23,18.64964886]
[1750614538602,18.69661993,130.26,130.23,18.64964886]
[1750614538819,18.69661993,130.26,130.23,19.32964886]
[1750614539329,18.69661993,130.26,130.22,18.64964886]
[1750614540225,18.69661993,130.25,130.21,18.69661993]
[1750614540429,18.69661993,130.23,130.18,18.64964886]
[1750614540723,7.68,130.24,130.18,0.68]
[1750614540724,18.69661993,130.21,130.18,0.68]
[1750614540922,40.76,130.24,130.18,19.37661993]
[1750614541127,7.68,130.24,130.21,0.68]
[1750614541335,7.68,130.24,130.23,38.02626879]
[1750614541516,33.02211993,130.29,130.24,19.32964886]
[1750614541722,7.68,130.29,130.26,18.64964886]
[1750614541928,7.68,130.29,130.28,18.69661993]
[1750614542235,7.68,130.29,130.28,46.93749276]
[1750614542442,89.1069,130.35,130.29,18.64964886]
[1750614542737,7.68,130.35,130.34,46.93749276]
[1750614542937,35.2878439,130.4,130.35,18.64964886]
[1750614543119,26.0,130.39,130.36,27.6078439]
[1750614543316,26.0,130.39,130.35,46.93749276]
[1750614543619,26.0,130.38,130.37,18.64964886]
[1750614543814,7.68,130.4,130.37,46.25749276]
[1750614544026,7.68,130.4,130.38,18.64964886]
[1750614545431,7.68,130.4,130.38,46.25749276]
[1750614545608,7.68,130.4,130.38,18.64964886]
[1750614546851,7.68,130.4,130.39,46.93749276]
[1750614547343,26.0,130.43,130.41,0.68]
[1750614548355,8.60232367,130.44,130.42,18.64964886]
[1750614549419,8.60232367,130.44,130.43,18.64964886]
[1750614549945,8.60232367,130.44,130.42,18.64964886]
[1750614550314,8.60232367,130.44,130.41,46.25749276]
[1750614550733,36.21016757,130.44,130.41,18.64964886]
[1750614550932,36.21016757,130.44,130.36,26.0]
[1750614550933,27.6078439,130.42,130.38,27.6078439]
[1750614551150,27.6078439,130.41,130.38,18.64964886]
[1750614551332,27.6078439,130.4,130.36,0.68]
[1750614551538,27.6078439,130.39,130.37,18.64964886]
[1750614551757,27.6078439,130.39,130.36,0.68]